fUST/lending_fUST_20251218
["ID","MTS","AMOUNT","RATE_DAILY","PERIOD"]
[398959016,1766023846715,-500.0,0.00041095,120]
[398959017,1766023846724,-500.0,0.00041095,120]
[398959018,1766023846733,-455.1108761,0.00041095,120]
[398959019,1766023846742,-500.0,0.00041095,14]
[398959020,1766023846751,-500.0,0.00041095,120]
[398959021,1766023846760,-500.0,0.00041095,120]
[398959022,1766023846770,-500.0,0.00041095,120]
[398959023,1766023846853,-500.0,0.00041095,120]
[398959024,1766023846862,-161.12175362,0.00041095,120]
[398959025,1766023846871,-500.0,0.00041095,120]
[398959026,1766023846881,-500.0,0.00041095,120]
[398959027,1766023846891,-917.68,0.00041095,120]
[398959028,1766023846900,-536.79,0.00041095,120]
[398959029,1766023846909,-500.0,0.00041095,120]
[398959030,1766023846917,-500.0,0.00041095,120]
[398959031,1766023846926,-500.0,0.00041095,120]
[398959032,1766023846935,-500.0,0.00041095,120]
[398959033,1766023846944,-500.0,0.00041095,120]
[398959034,1766023846953,-500.0,0.00041095,120]
[398959035,1766023846963,-500.0,0.00041095,120]
[398959036,1766023846972,-500.0,0.00041095,120]
[398959037,1766023846981,-500.0,0.00041095,120]
[398959038,1766023846994,-500.0,0.00041095,120]
[398959039,1766023847003,-500.0,0.00041095,120]
[398959040,1766023847012,-500.0,0.00041095,120]
[398959041,1766023847021,-500.0,0.00041095,120]
[398959042,1766023847031,-500.0,0.00041095,120]
[398959043,1766023847040,-500.0,0.00041095,120]
[398959044,1766023847049,-500.0,0.00041095,120]
[398959045,1766023847058,-500.0,0.00041095,120]
[398959046,1766023847067,-531.75526555,0.00041095,12]
[398959047,1766023847076,-500.0,0.00041095,60]
[398959048,1766023847085,-500.0,0.00041095,120]
[398959049,1766023847094,-500.0,0.00041095,120]
[398959050,1766023847107,-476.63438465,0.00041095,2]
[398959051,1766023847116,-500.0,0.00041095,120]
[398959052,1766023847125,-500.0,0.00041095,120]
[398959053,1766023847134,-500.0,0.00041095,120]
[398959054,1766023847143,-500.0,0.00041095,120]
[398959055,1766023847153,-500.0,0.00041095,120]
[398959056,1766023847162,-500.0,0.00041095,120]
[398959057,1766023847171,-500.0,0.00041095,120]
[398959058,1766023847180,-500.0,0.00041095,120]
[398959059,1766023847189,-500.0,0.00041095,120]
[398959060,1766023847198,-500.0,0.00041095,120]
[398959061,1766023847207,-500.0,0.00041095,120]
[398959062,1766023847216,-500.0,0.00041095,120]
[398959063,1766023847226,-500.0,0.00041095,2]
[398959064,1766023847236,-503.34881505,0.00041095,120]
[398959065,1766023847245,-2775.21003381,0.00041132,2]
[398959066,1766023847254,-2775.21003381,0.00041269,2]
[398959067,1766023847263,-202.8075015,0.00041359,3]
[398959068,1766023847272,-498.18419475,0.00041369,120]
[398959069,1766023847281,-532.5263192,0.00041369,120]
[398959070,1766023847291,-165.27600807,0.00041369,120]
[398959071,1766023847303,-500.0,0.00041369,120]
[398959072,1766023847313,-230.28211617,0.00041369,120]
[398959073,1766023847324,-500.0,0.00041369,120]
[398959074,1766023847344,-500.0,0.00041369,120]
[398959075,1766023847356,-592.80105879,0.00041369,120]
[398959076,1766023847366,-494.55051029,0.00041369,120]
[398959077,1766023847376,-252.12185467,0.00041369,120]
[398959078,1766023847386,-500.0,0.00041369,120]
[398959079,1766023847397,-315.75988861,0.00041369,120]
[398959080,1766023847408,-453.76028308,0.00041369,120]
[398959081,1766023847418,-500.0,0.00041369,120]
[398959082,1766023847428,-500.0,0.00041369,120]
[398959083,1766023847438,-274.76061602,0.00041369,120]
[398959084,1766023847447,-576.51205808,0.00041369,120]
[398959085,1766023847457,-500.0,0.00041369,120]
[398959086,1766023847468,-500.0,0.00041369,120]
[398959087,1766023847479,-493.8411768,0.00041369,120]
[398959088,1766023847488,-500.0,0.00041369,120]
[398959089,1766023847498,-500.0,0.00041369,120]
[398959090,1766023847508,-198.77,0.00041369,120]
[398959091,1766023847518,-247.01134458,0.00041369,120]
[398959092,1766023847528,-426.22,0.00041369,120]
[398959093,1766023847538,-533.36462162,0.00041369,120]
[398959094,1766023847547,-223.53905926,0.00041369,120]
[398959095,1766023847557,-500.0,0.00041369,120]
[398959096,1766023847566,-500.0,0.00041369,120]
[398959097,1766023847576,-500.0,0.00041369,120]
[398959098,1766023847585,-501.52471333,0.00041369,120]
[398959099,1766023847595,-501.30926614,0.00041369,120]
[398959100,1766023847604,-508.1325259,0.00041369,120]
[398959101,1766023847614,-503.24868678,0.00041369,120]
[398959102,1766023847623,-500.0,0.00041369,120]
[398959103,1766023847632,-502.91054631,0.00041369,120]
[398959104,1766023847645,-489.73357223,0.00041369,120]
[398959105,1766023847659,-500.0,0.00041369,120]
[398959106,1766023847668,-500.69316792,0.00041369,120]
[398959107,1766023847678,-623.71306012,0.00041369,120]
[398959108,1766023847689,-500.0,0.00041369,120]
[398959109,1766023847699,-500.0,0.00041369,120]
[398959110,1766023847709,-193.48422603,0.00041369,120]
[398959111,1766023847723,-542.06145929,0.00041369,120]
[398959112,1766023847732,-502.42206915,0.00041369,120]
[398959113,1766023847742,-181.76077362,0.00041369,120]
[398959114,1766023847751,-500.0,0.00041369,120]
[398959115,1766023847761,-500.0,0.00041369,120]
[398959116,1766023847770,-500.0,0.00041369,120]
[398959117,1766023847779,-500.0,0.00041369,120]
[398959118,1766023847788,-500.0,0.00041369,120]
[398959119,1766023847798,-501.55825384,0.00041369,120]
[398959120,1766023847807,-245.49,0.00041369,120]
[398959121,1766023847816,-504.68682653,0.00041369,120]
[398959122,1766023847826,-500.0,0.00041369,120]
[398959123,1766023847835,-392.77657293,0.00041369,60]
[398959124,1766023847844,-517.69499282,0.00041369,120]
[398959125,1766023847853,-526.45046786,0.00041369,120]
[398959126,1766023847862,-505.93192236,0.00041369,120]
[398959127,1766023847873,-212.5027033,0.00041369,120]
[398959128,1766023847883,-240.13390862,0.00041369,120]
[398959129,1766023847892,-505.15652698,0.00041369,120]
[398959130,1766023847901,-500.0,0.00041369,120]
[398959131,1766023847911,-500.0,0.00041369,120]
[398959132,1766023847920,-192.67263715,0.00041369,120]
[398959133,1766023847930,-275.93,0.00041369,120]
[398959134,1766023847939,-500.0,0.00041369,120]
[398959135,1766023847948,-500.0,0.00041369,120]
[398959136,1766023847957,-505.96000442,0.00041369,120]
[398959137,1766023847967,-500.0,0.00041369,120]
[398959138,1766023847977,-500.0,0.00041369,120]
[398959139,1766023847986,-318.69607751,0.00041369,120]
[398959140,1766023847997,-500.0,0.00041369,30]
[398959141,1766023848008,-502.58095767,0.00041369,120]
[398959142,1766023848018,-500.0,0.00041369,120]
[398959143,1766023848027,-500.0,0.00041369,120]
[398959144,1766023848037,-500.0,0.00041369,120]
[398959145,1766023848047,-500.91890206,0.00041369,120]
[398959146,1766023848056,-500.46549066,0.00041369,120]
[398959147,1766023848066,-501.93798533,0.00041369,120]
[398959148,1766023848075,-500.0,0.00041369,120]
[398959149,1766023848084,-500.0,0.00041369,120]
[398959150,1766023848095,-522.87560098,0.00041369,120]
[398959151,1766023848104,-500.0,0.00041369,120]
[398959152,1766023848114,-500.0,0.00041369,120]
[398959153,1766023848123,-500.0,0.00041369,120]
[398959154,1766023848132,-478.1234008,0.00041369,120]
[398959155,1766023848141,-500.0,0.00041369,120]
[398959156,1766023848150,-500.0,0.00041369,120]
[398959157,1766023848159,-500.0,0.00041369,120]
[398959158,1766023848168,-414.98560966,0.00041369,120]
[398959159,1766023848177,-502.02441896,0.00041369,120]
[398959160,1766023848186,-500.0,0.00041369,120]
[398959161,1766023848195,-500.0,0.00041369,120]
[398959162,1766023848204,-502.36678031,0.00041369,120]
[398959163,1766023848213,-500.36432286,0.00041369,120]
[398959164,1766023848222,-500.0,0.00041369,120]
[398959165,1766023848231,-500.0,0.00041369,120]
[398959166,1766023848239,-500.0,0.00041369,120]
[398959167,1766023848248,-500.0,0.00041369,120]
[398959168,1766023848258,-500.0,0.00041369,120]
[398959169,1766023848267,-500.48909106,0.00041369,120]
[398959170,1766023848275,-467.66506398,0.00041369,120]
[398959171,1766023848284,-500.38556371,0.00041369,120]
[398959172,1766023848293,-500.0,0.00041369,120]
[398959173,1766023848302,-500.41442432,0.00041369,120]
[398959174,1766023848311,-500.0,0.00041369,120]
[398959175,1766023848320,-500.0,0.00041369,120]
[398959176,1766023848329,-500.0,0.00041369,120]
[398959177,1766023848339,-164.110659,0.00041369,120]
[398959178,1766023848348,-570.48493812,0.00041369,120]
[398959179,1766023848357,-502.28771595,0.00041369,120]
[398959180,1766023848367,-500.0,0.00041369,120]
[398959181,1766023848377,-500.0,0.00041369,120]
[398959182,1766023848387,-502.10345082,0.00041369,120]
[398959183,1766023848398,-392.57,0.00041369,120]
[398959184,1766023848411,-203.95,0.00041369,120]
[398959185,1766023848420,-500.0,0.00041369,120]
[398959186,1766023848430,-339.925264,0.00041369,120]
[398959187,1766023848440,-502.7385072,0.00041369,120]
[398959188,1766023848450,-500.0,0.00041369,120]
[398959189,1766023848462,-500.0,0.00041369,120]
[398959190,1766023848473,-500.0,0.00041369,120]
[398959191,1766023848483,-500.0,0.00041369,120]
[398959192,1766023848492,-501.41128117,0.00041369,120]
[398959193,1766023848502,-500.0,0.00041369,120]
[398959194,1766023848597,-505.76523378,0.00041369,120]
[398959195,1766023848607,-501.11285624,0.00041369,120]
[398959196,1766023848616,-484.47698839,0.00041369,120]
[398959197,1766023848625,-502.18058457,0.00041369,120]
[398959198,1766023848635,-501.3260648,0.00041369,120]
[398959199,1766023848647,-500.0,0.00041369,120]
[398959200,1766023848656,-500.0,0.00041369,120]
[398959201,1766023848667,-500.0,0.00041369,120]
[398959202,1766023848676,-4446.067876,0.00041369,120]
[398959203,1766023848686,-500.0,0.00041369,120]
[398959204,1766023848696,-500.0,0.00041369,120]
[398959205,1766023848706,-500.39770115,0.00041369,120]
[398959206,1766023848717,-500.0,0.00041369,120]
[398959207,1766023848725,-500.0,0.00041369,120]
[398959208,1766023848734,-502.51444677,0.00041369,120]
[398959209,1766023848743,-151.0,0.00041369,30]
[398959210,1766023848752,-504.98374803,0.00041369,120]
[398959211,1766023848761,-354.29976128,0.00041369,120]
[398959212,1766023848770,-151.0,0.00041369,30]
[398959213,1766023848779,-504.30508485,0.00041369,120]
[398959214,1766023848788,-392.16514906,0.00041369,120]
[398959215,1766023848798,-500.0,0.00041369,120]
[398959216,1766023848807,-502.22546742,0.00041369,120]
[398959217,1766023848816,-496.5829956,0.00041369,120]
[398959218,1766023848825,-500.0,0.00041369,120]
[398959219,1766023848834,-502.41001239,0.00041369,120]
[398959220,1766023848843,-500.87523566,0.00041369,120]
[398959221,1766023848852,-502.69309611,0.00041369,120]
[398959222,1766023848860,-500.0,0.00041369,120]
[398959223,1766023848869,-500.0,0.00041369,2]
[398959224,1766023848879,-501.50225942,0.00041369,120]
[398959225,1766023848888,-502.72018978,0.00041369,120]
[398959226,1766023848898,-500.81179789,0.00041369,120]
[398959227,1766023848909,-500.0,0.00041369,120]
[398959228,1766023848919,-505.88279156,0.00041369,120]
[398959229,1766023848930,-501.13936234,0.00041369,120]
[398959230,1766023848941,-501.06392011,0.00041369,120]
[398959231,1766023848951,-556.75174885,0.00041369,120]
[398959232,1766023848959,-503.11911921,0.00041369,7]
[398959233,1766023848969,-568.38830087,0.00041369,120]
[398959234,1766023848979,-528.13200249,0.00041369,120]
[398959235,1766023848989,-506.38900067,0.00041369,120]
[398959236,1766023848999,-502.67260987,0.00041369,120]
[398959237,1766023849008,-501.63724028,0.00041369,120]
[398959238,1766023849017,-500.0,0.00041369,120]
[398959239,1766023849026,-502.14632789,0.00041369,120]
[398959240,1766023849037,-501.57511939,0.00041369,120]
[398959241,1766023849047,-500.0,0.00041369,120]
[398959242,1766023849056,-500.0,0.00041369,120]
[398959243,1766023849065,-503.18861776,0.00041369,120]
[398959244,1766023849074,-500.0,0.00041369,120]
[398959245,1766023849083,-504.87999242,0.00041369,120]
[398959246,1766023849092,-501.00825896,0.00041369,120]
[398959247,1766023849101,-500.79184915,0.00041369,120]
[398959248,1766023849110,-500.0,0.00041369,120]
[398959249,1766023849119,-500.0,0.00041369,120]
[398959250,1766023849128,-504.44107475,0.00041369,120]
[398959251,1766023849137,-503.87329257,0.00041369,120]
[398959252,1766023849146,-500.0,0.00041369,120]
[398959253,1766023849155,-500.0,0.00041369,120]
[398959254,1766023849163,-506.53373053,0.00041369,120]
[398959255,1766023849173,-502.7558386,0.00041369,120]
[398959256,1766023849182,-501.74383192,0.00041369,30]
[398959257,1766023849191,-500.0,0.00041369,120]
[398959258,1766023849200,-505.33426826,0.00041369,120]
[398959259,1766023849209,-502.02709444,0.00041369,120]
[398959260,1766023849218,-502.52304757,0.00041369,120]
[398959261,1766023849227,-502.15712918,0.00041369,120]
[398959262,1766023849236,-500.0,0.00041369,120]
[398959263,1766023849245,-500.0,0.00041369,120]
[398959264,1766023849253,-500.0,0.00041369,120]
[398959265,1766023849262,-501.85561213,0.00041369,120]
[398959266,1766023849272,-501.71566948,0.00041369,120]
[398959267,1766023849281,-501.78311353,0.00041369,120]
[398959268,1766023849290,-593.56234219,0.00041369,12]
[398959269,1766023849299,-500.0,0.00041369,120]
[398959270,1766023849308,-500.70825829,0.00041369,120]
[398959271,1766023849317,-606.65570829,0.00041369,120]
[398959272,1766023849326,-501.57577092,0.00041369,120]
[398959273,1766023849335,-500.62603978,0.00041369,120]
[398959274,1766023849344,-501.32663563,0.00041369,120]
[398959275,1766023849355,-500.0,0.00041369,120]
[398959276,1766023849365,-503.77245011,0.00041369,120]
[398959277,1766023849375,-500.0,0.00041369,120]
[398959278,1766023849387,-412.15962267,0.00041369,120]
[398959279,1766023849398,-479.42501051,0.00041369,120]
[398959280,1766023849407,-500.0,0.00041369,120]
[398959281,1766023849416,-501.52151598,0.00041369,120]
[398959282,1766023849426,-500.0,0.00041369,120]
[398959283,1766023849435,-503.93935191,0.00041369,120]
[398959284,1766023849444,-500.0,0.00041369,120]
[398959285,1766023849454,-504.04174155,0.00041369,120]
[398959286,1766023849463,-501.8041155,0.00041369,120]
[398959287,1766023849472,-501.86139449,0.00041369,120]
[398959288,1766023849481,-501.88184393,0.00041369,15]
[398959289,1766023849490,-504.58581142,0.00041369,120]
[398959290,1766023849499,-500.0,0.00041369,120]
[398959291,1766023849509,-500.92205763,0.00041369,120]
[398959292,1766023849518,-502.71684282,0.00041369,120]
[398959293,1766023849527,-500.36845043,0.00041369,120]
[398959294,1766023849536,-500.0,0.00041369,120]
[398959295,1766023849545,-501.27515011,0.00041369,120]
[398959296,1766023849554,-501.09441779,0.00041369,120]
[398959297,1766023849563,-500.0,0.00041369,120]
[398959298,1766023849572,-500.0,0.00041369,120]
[398959299,1766023849581,-501.4933816,0.00041369,120]
[398959300,1766023849590,-584.758341,0.00041369,120]
[398959301,1766023849599,-500.0,0.00041369,120]
[398959302,1766023849608,-501.09047263,0.00041369,120]
[398959303,1766023849616,-503.89771722,0.00041369,120]
[398959304,1766023849625,-584.758341,0.00041369,120]
[398959305,1766023849634,-500.0,0.00041369,120]
[398959306,1766023849645,-584.758341,0.00041369,120]
[398959307,1766023849654,-500.70703018,0.00041369,120]
[398959308,1766023849663,-584.758341,0.00041369,120]
[398959309,1766023849671,-501.21536649,0.00041369,120]
[398959310,1766023849680,-500.0,0.00041369,120]
[398959311,1766023849689,-519.08249787,0.00041369,120]
[398959312,1766023849698,-502.25750259,0.00041369,120]
[398959313,1766023849707,-501.0556046,0.00041369,120]
[398959314,1766023849718,-500.0,0.00041369,120]
[398959315,1766023849727,-501.92801276,0.00041369,120]
[398959316,1766023849735,-501.64380583,0.00041369,120]
[398959317,1766023849744,-503.03348337,0.00041369,120]
[398959318,1766023849753,-502.55853408,0.00041369,120]
[398959319,1766023849762,-501.12530607,0.00041369,120]
[398959320,1766023849771,-500.0,0.00041369,120]
[398959321,1766023849780,-501.89031737,0.00041369,120]
[398959322,1766023849788,-500.71249273,0.00041369,120]
[398959323,1766023849797,-500.0,0.00041369,120]
[398959324,1766023849806,-500.0,0.00041369,120]
[398959325,1766023849815,-500.0,0.00041369,120]
[398959326,1766023849824,-501.3852501,0.00041369,120]
[398959327,1766023849833,-500.0,0.00041369,120]
[398959328,1766023849841,-500.0,0.00041369,30]
[398959329,1766023849850,-500.0,0.00041369,120]
[398959330,1766023849859,-500.0,0.00041369,120]
[398959331,1766023849868,-500.32688849,0.00041369,120]
[398959332,1766023849877,-500.0,0.00041369,120]
[398959333,1766023849885,-500.0,0.00041369,120]
[398959334,1766023849894,-447.42645197,0.00041369,120]
[398959335,1766023849903,-500.36855351,0.00041369,120]
[398959336,1766023849911,-500.0,0.00041369,120]
[398959337,1766023849920,-500.0,0.00041369,120]
[398959338,1766023849929,-501.00202391,0.00041369,120]
[398959339,1766023849938,-500.0,0.00041369,120]
[398959340,1766023849947,-500.0,0.00041369,120]
[398959341,1766023849956,-500.0,0.00041369,120]
[398959342,1766023849965,-502.95391756,0.00041369,120]
[398959343,1766023849974,-500.0,0.00041369,120]
[398959344,1766023849983,-500.0,0.00041369,30]
[398959345,1766023849992,-500.0,0.00041369,120]
[398959346,1766023850001,-500.0,0.00041369,21]
[398959347,1766023850009,-500.0,0.00041369,30]
[398959348,1766023850018,-500.0,0.00041369,120]
[398959349,1766023850027,-522.49164363,0.00041369,120]
[398959350,1766023850037,-500.0,0.00041369,120]
[398959351,1766023850045,-502.32056723,0.00041369,120]
[398959352,1766023850054,-1341.12,0.00041369,120]
[398959353,1766023850121,-500.0,0.00041369,120]
[398959354,1766023850135,-501.95659324,0.00041369,120]
[398959355,1766023850144,-680.25,0.00041369,120]
[398959356,1766023850153,-500.0,0.00041369,120]
[398959357,1766023850162,-502.87937256,0.00041369,120]
[398959358,1766023850171,-500.55105795,0.00041369,30]
[398959359,1766023850180,-511.05736373,0.00041369,120]
[398959360,1766023850189,-501.17182868,0.00041369,120]
[398959361,1766023850200,-501.9222628,0.00041369,120]
[398959362,1766023850210,-500.0,0.00041369,120]
[398959363,1766023850221,-500.0,0.00041369,120]
[398959364,1766023850230,-500.0,0.00041369,120]
[398959365,1766023850240,-500.0,0.00041369,120]
[398959366,1766023850249,-500.0,0.00041369,120]
[398959367,1766023850260,-500.0,0.00041369,120]
[398959368,1766023850270,-500.0,0.00041369,120]
[398959369,1766023850280,-502.61717139,0.00041369,120]
[398959370,1766023850289,-500.61583489,0.00041369,120]
[398959371,1766023850299,-501.30634945,0.00041369,120]
[398959372,1766023850308,-500.0,0.00041369,120]
[398959373,1766023850318,-500.0,0.00041369,120]
[398959374,1766023850327,-500.0,0.00041369,120]
[398959375,1766023850337,-504.33616928,0.00041369,120]
[398959376,1766023850345,-500.44769936,0.00041369,120]
[398959377,1766023850354,-501.70403131,0.00041369,120]
[398959378,1766023850363,-500.0,0.00041369,120]
[398959379,1766023850372,-500.0,0.00041369,120]
[398959380,1766023850381,-500.0,0.00041369,120]
[398959381,1766023850390,-500.0,0.00041369,120]
[398959382,1766023850399,-500.41932596,0.00041369,120]
[398959383,1766023850409,-500.0,0.00041369,120]
[398959384,1766023850421,-500.0,0.00041369,120]
[398959385,1766023850432,-500.38247373,0.00041369,120]
[398959386,1766023850442,-502.27889848,0.00041369,30]
[398959387,1766023850451,-500.0,0.00041369,120]
[398959388,1766023850460,-501.22696733,0.00041369,120]
[398959389,1766023850470,-501.91574288,0.00041369,120]
[398959390,1766023850480,-587.505396,0.00041369,120]
[398959391,1766023850489,-288.05029827,0.00041369,120]
[398959392,1766023850499,-500.39305962,0.00041369,120]
[398959393,1766023850508,-500.63781413,0.00041369,20]
[398959394,1766023850519,-587.505396,0.00041369,120]
[398959395,1766023850528,-500.0,0.00041369,120]
[398959396,1766023850538,-500.24783099,0.00041369,120]
[398959397,1766023850548,-500.0,0.00041369,120]
[398959398,1766023850557,-501.03416245,0.00041369,120]
[398959399,1766023850567,-587.505396,0.00041369,120]
[398959400,1766023850576,-500.32918244,0.00041369,120]
[398959401,1766023850586,-587.505396,0.00041369,120]
[398959402,1766023850595,-500.0,0.00041369,120]
[398959403,1766023850604,-502.58026039,0.00041369,120]
[398959404,1766023850613,-542.64610077,0.00041369,120]
[398959405,1766023850622,-500.82956636,0.00041369,120]
[398959406,1766023850631,-502.08234957,0.00041369,120]
[398959407,1766023850643,-500.0,0.00041369,120]
[398959408,1766023850652,-500.0,0.00041369,120]
[398959409,1766023850661,-501.77121667,0.00041369,120]
[398959410,1766023850670,-502.44838325,0.00041369,120]
[398959411,1766023850679,-503.92220751,0.00041369,120]
[398959412,1766023850689,-602.24411337,0.00041369,120]
[398959413,1766023850697,-500.0,0.00041369,120]
[398959414,1766023850706,-500.0,0.00041369,120]
[398959415,1766023850717,-500.33392627,0.00041369,120]
[398959416,1766023850725,-502.38971651,0.00041369,120]
[398959417,1766023850734,-501.09495356,0.00041369,120]
[398959418,1766023850743,-500.94780786,0.00041369,120]
[398959419,1766023850752,-500.0,0.00041369,120]
[398959420,1766023850761,-500.59948216,0.00041369,120]
[398959421,1766023850771,-309.29685172,0.00041369,120]
[398959422,1766023850781,-501.4407255,0.00041369,120]
[398959423,1766023850790,-567.58964127,0.00041369,120]
[398959424,1766023850800,-500.0,0.00041369,120]
[398959425,1766023850809,-503.57448472,0.00041369,120]
[398959426,1766023850819,-500.0,0.00041369,120]
[398959427,1766023850829,-500.17941419,0.00041369,120]
[398959428,1766023850839,-502.69904248,0.00041369,120]
[398959429,1766023850850,-596.02573595,0.00041369,120]
[398959430,1766023850859,-500.0,0.00041369,120]
[398959431,1766023850868,-500.0,0.00041369,120]
[398959432,1766023850877,-502.17164342,0.00041369,120]
[398959433,1766023850887,-500.39917105,0.00041369,120]
[398959434,1766023850897,-502.27101211,0.00041369,120]
[398959435,1766023850908,-500.0,0.00041369,120]
[398959436,1766023850918,-500.0,0.00041369,120]
[398959437,1766023850929,-500.22583811,0.00041369,120]
[398959438,1766023850938,-500.0,0.00041369,120]
[398959439,1766023850947,-500.0,0.00041369,120]
[398959440,1766023850955,-500.0,0.00041369,120]
[398959441,1766023850964,-502.67330631,0.00041369,120]
[398959442,1766023850973,-500.0,0.00041369,120]
[398959443,1766023850982,-502.81006047,0.00041369,120]
[398959444,1766023850991,-500.0,0.00041369,120]
[398959445,1766023851000,-500.76943381,0.00041369,120]
[398959446,1766023851009,-500.0,0.00041369,120]
[398959447,1766023851018,-500.0,0.00041369,120]
[398959448,1766023851027,-500.61076694,0.00041369,120]
[398959449,1766023851036,-500.0,0.00041369,120]
[398959450,1766023851044,-868.74,0.00041369,3]
[398959451,1766023851053,-500.0,0.00041369,120]
[398959452,1766023851062,-500.0,0.00041369,120]
[398959453,1766023851071,-502.83000289,0.00041369,120]
[398959454,1766023851080,-502.67648173,0.00041369,120]
[398959455,1766023851089,-524.99455788,0.00041369,120]
[398959456,1766023851100,-503.59993109,0.00041369,120]
[398959457,1766023851110,-502.51165779,0.00041369,120]
[398959458,1766023851120,-500.0,0.00041369,120]
[398959459,1766023851129,-500.0,0.00041369,120]
[398959460,1766023851138,-500.0,0.00041369,120]
[398959461,1766023851149,-500.0,0.00041369,120]
[398959462,1766023851161,-500.0,0.00041369,120]
[398959463,1766023851172,-624.51102618,0.00041369,120]
[398959464,1766023851183,-500.0,0.00041369,120]
[398959465,1766023851193,-500.0,0.00041369,120]
[398959466,1766023851203,-501.86756677,0.00041369,120]
[398959467,1766023851212,-514.31383686,0.00041369,120]
[398959468,1766023851221,-500.35426598,0.00041369,120]
[398959469,1766023851230,-500.0,0.00041369,120]
[398959470,1766023851239,-500.0,0.00041369,120]
[398959471,1766023851248,-500.0,0.00041369,2]
[398959472,1766023851257,-500.0,0.00041369,120]
[398959473,1766023851267,-500.56295627,0.00041369,120]
[398959474,1766023851276,-500.34894415,0.00041369,60]
[398959475,1766023851285,-502.84006782,0.00041369,120]
[398959476,1766023851295,-505.28905303,0.00041369,120]
[398959477,1766023851305,-500.0,0.00041369,120]
[398959478,1766023851314,-500.80728797,0.00041369,120]
[398959479,1766023851322,-500.0,0.00041369,120]
[398959480,1766023851331,-2080.09,0.00041369,120]
[398959481,1766023851339,-500.0,0.00041369,20]
[398959482,1766023851348,-500.8821366,0.00041369,120]
[398959483,1766023851357,-502.91835986,0.00041369,120]
[398959484,1766023851366,-500.0,0.00041369,120]
[398959485,1766023851375,-500.0,0.00041369,120]
[398959486,1766023851385,-501.24328172,0.00041369,120]
[398959487,1766023851394,-500.0,0.00041369,120]
[398959488,1766023851404,-503.96209183,0.00041369,120]
[398959489,1766023851413,-500.0,0.00041369,120]
[398959490,1766023851423,-503.0355785,0.00041369,120]
[398959491,1766023851432,-501.55030002,0.00041369,120]
[398959492,1766023851442,-500.0,0.00041369,120]
[398959493,1766023851452,-500.0,0.00041369,120]
[398959494,1766023851463,-500.0,0.00041369,120]
[398959495,1766023851473,-500.0,0.00041369,120]
[398959496,1766023851483,-500.0,0.00041369,120]
[398959497,1766023851492,-500.0,0.00041369,120]
[398959498,1766023851502,-835.86,0.00041369,120]
[398959499,1766023851512,-501.78514479,0.00041369,120]
[398959500,1766023851586,-500.0,0.00041369,120]
[398959501,1766023851596,-500.0,0.00041369,120]
[398959502,1766023851606,-503.00987482,0.00041369,120]
[398959503,1766023851615,-504.9190382,0.00041369,120]
[398959504,1766023851624,-500.0,0.00041369,120]
[398959505,1766023851634,-500.0,0.00041369,120]
[398959506,1766023851646,-504.68545799,0.00041369,120]
[398959507,1766023851655,-501.46846058,0.00041369,120]
[398959508,1766023851664,-501.51205019,0.00041369,120]
[398959509,1766023851673,-500.0,0.00041369,120]
[398959510,1766023851682,-500.0,0.00041369,120]
[398959511,1766023851692,-778.67,0.00041369,120]
[398959512,1766023851701,-3505.63,0.00041369,120]
[398959513,1766023851710,-597.26,0.00041369,120]
[398959514,1766023851723,-501.68984988,0.00041369,120]
[398959515,1766023851732,-514.77793876,0.00041369,120]